bitfinex-derivatives/quotes_ETHF0:USTF0_20230402
["timestamp","ask_amount","ask_price","bid_price","bid_amount"]
[1680415704570,1.3270469,1821.5,1821.4,0.85776327]
[1680415704969,4.5348469,1821.5,1821.4,0.85776327]
[1680415709373,5.9737442,1821.5,1821.4,0.85232431]
[1680415710374,4.5348469,1821.5,1821.4,0.85232431]
[1680415717280,1.3270469,1821.5,1821.4,0.85232431]
[1680415717481,4.5348469,1821.5,1821.4,0.85232431]
[1680415721482,5.9737442,1821.5,1821.4,0.85232431]
[1680415722378,4.5348469,1821.5,1821.4,0.85232431]
[1680415725883,5.9737442,1821.5,1821.4,0.85232431]
[1680415729484,4.5348469,1821.5,1821.4,0.85232431]
[1680415729789,5.9737442,1821.5,1821.4,0.85232431]
[1680415735392,5.6875381,1821.5,1821.4,0.85232431]
[1680415746504,5.6875381,1821.5,1821.4,1.42544887]
[1680415756207,5.2875381,1821.5,1821.4,1.42544887]
[1680415758310,4.1348469,1821.5,1821.4,0.57312456]
[1680415759614,5.5737442,1821.5,1821.4,0.57312456]
[1680415761315,5.56775388,1821.5,1821.4,0.57312456]
[1680415770717,2.35995388,1821.5,1821.4,0.57312456]
[1680415770923,5.56775388,1821.5,1821.4,0.57312456]
[1680415778140,5.56775388,1821.5,1821.3,0.85950872]
[1680415778141,19.02508676,1821.5,1821.3,1.43251479]
[1680415778337,17.36698787,1821.4,1821.2,1.43251479]
[1680415778536,5.18011179,1821.3,1821.2,0.57300607]
[1680415783337,0.823,1821.2,1821.1,1.43251479]
[1680415783642,2.50961271,1821.2,1821.1,1.43251479]
[1680415785143,2.50961271,1821.2,1821.1,0.57300607]
[1680415788649,2.67284155,1821.2,1821.1,0.57300607]
[1680415788855,2.96054063,1821.2,1821.0,0.57300607]
[1680415789149,2.96054063,1821.2,1820.9,0.57300607]
[1680415789150,5.18011179,1821.1,1820.9,0.57300607]
[1680415789445,1.68355674,1821.0,1820.8,1.43251479]
[1680415789656,4.60618249,1820.9,1820.8,1.43251479]
[1680415791053,4.60618249,1820.9,1820.8,0.57300607]
[1680415791246,4.0308,1820.9,1820.8,0.57300607]
[1680415804458,4.0308,1820.9,1820.7,1.43251479]
[1680415804662,0.819,1820.8,1820.7,1.43251479]
[1680415805262,0.819,1820.8,1820.7,0.85950872]
[1680415805461,0.819,1820.8,1820.7,1.43156896]
[1680415806060,0.819,1820.8,1820.7,0.85950872]
[1680415806262,0.99885238,1820.8,1820.7,0.85950872]
[1680415806460,0.99885238,1820.8,1820.7,1.43154517]
[1680415807263,0.99885238,1820.8,1820.7,0.85950872]
[1680415811565,0.99885238,1820.8,1820.7,1.4316029]
[1680415812366,0.99885238,1820.8,1820.7,0.85950872]
[1680415813163,0.99885238,1820.8,1820.7,0.5721257]
[1680415821264,0.99885238,1820.8,1820.7,0.85950872]
[1680415828570,1.57423487,1820.8,1820.7,0.85950872]
[1680415831381,1.57423487,1820.8,1820.7,1.14373265]
[1680415832075,4.78203487,1820.8,1820.7,1.14373265]
[1680415833282,5.07020912,1820.8,1820.7,1.14373265]
[1680415835284,5.64644483,1820.8,1820.7,1.14373265]
[1680415835984,5.07020912,1820.8,1820.7,1.14373265]
[1680415845994,5.06760807,1820.8,1820.7,1.14373265]
[1680415847097,2.43603033,1820.8,1820.7,1.14373265]
[1680415847290,1.85980807,1820.8,1820.7,1.14373265]
[1680415855200,1.85980807,1820.8,1820.6,1.14373265]
[1680415855402,3.78411917,1820.7,1820.6,1.82480578]
[1680415855794,3.96433533,1820.7,1820.6,1.82480578]
[1680415857012,4.78633533,1820.7,1820.6,1.82480578]
[1680415857311,4.78633533,1820.7,1820.6,1.14373265]
[1680415862214,1.57853533,1820.7,1820.6,2.11160671]
[1680415862410,1.57853533,1820.7,1820.6,1.43053358]
[1680415862614,1.57853533,1820.7,1820.6,2.11160671]
[1680415865613,1.57853533,1820.7,1820.6,0.68107313]
[1680415870616,1.57853533,1820.7,1820.6,1.14726708]
[1680415871017,1.57853533,1820.7,1820.6,1.82834021]
[1680415872613,1.57853533,1820.7,1820.6,0.68107313]
[1680415872917,1.57853533,1820.7,1820.6,1.14721358]
[1680415873116,1.57853533,1820.7,1820.6,1.82828671]
[1680415875424,2.44209207,1820.7,1820.6,1.82828671]
[1680415877726,1.57853533,1820.7,1820.6,1.82828671]
[1680415877927,2.44209207,1820.7,1820.6,1.82828671]
[1680415880833,1.8657729,1820.7,1820.6,1.82828671]
[1680415881020,1.8657729,1820.7,1820.6,1.14721358]
[1680415884838,2.44208482,1820.7,1820.6,1.14721358]
[1680415885038,1.8657729,1820.7,1820.6,1.14721358]
[1680415886840,2.44207845,1820.7,1820.6,1.14721358]
[1680415889437,1.8657729,1820.7,1820.6,1.14721358]
[1680415895948,1.8657729,1820.7,1820.6,1.82828671]
[1680415899148,1.8657729,1820.7,1820.6,1.14721358]
[1680415899747,1.57856967,1820.7,1820.6,1.68108441]
[1680415899948,1.57856967,1820.7,1820.6,3.11161799]
[1680415900544,1.57856967,1820.7,1820.6,1.68108441]
[1680415902843,2.44212641,1820.7,1820.6,2.82853005]
[1680415903047,1.57856967,1820.7,1820.6,2.82853005]
[1680415903347,1.57856967,1820.7,1820.6,1.68108441]
[1680415906048,1.57856967,1820.7,1820.6,2.82853213]
[1680415906248,1.57856967,1820.7,1820.6,1.68108441]
[1680415906952,0.75656967,1820.7,1820.6,1.68108441]
[1680415908254,1.62012641,1820.7,1820.6,2.82857086]
[1680415908453,1.62012641,1820.7,1820.6,1.68108441]
[1680415908454,0.75656967,1820.7,1820.6,1.68108441]
[1680415909455,0.75656967,1820.7,1820.6,0.68108441]
[1680415909650,1.62012641,1820.7,1820.6,1.82862633]
[1680415909851,1.0437729,1820.7,1820.6,1.82862633]
[1680415910355,1.0437729,1820.7,1820.6,1.14754192]
[1680415912656,1.0437729,1820.7,1820.6,1.82863323]
[1680415912866,1.0437729,1820.7,1820.6,1.14754192]
[1680415915269,1.0437729,1820.7,1820.6,1.82863261]
[1680415915471,1.0437729,1820.7,1820.6,1.14754192]
[1680415916974,1.8637729,1820.7,1820.6,1.14754192]
[1680415922377,5.0715729,1820.7,1820.6,1.14754192]
[1680415930883,1.57656539,1820.7,1820.6,1.14754192]
[1680415932285,2.44012213,1820.7,1820.6,1.14754192]
[1680415932479,1.8637729,1820.7,1820.6,1.14754192]
[1680415955300,5.0715729,1820.7,1820.6,1.14754192]
[1680415960509,1.8637729,1820.7,1820.6,1.14754192]
[1680415970911,1.8637729,1820.7,1820.6,1.82863418]
[1680415971109,3.6078,1820.9,1820.7,6.863]
[1680415971110,0.5764608,1820.9,1820.7,6.863]
[1680415971313,0.5764608,1821.0,1820.8,10.21189226]
[1680415971617,0.5764608,1821.0,1820.9,3.93447291]
[1680415972808,0.5764608,1821.1,1820.9,3.64633075]
[1680415973013,0.5764608,1821.1,1821.0,0.85893641]
[1680415973212,0.5764608,1821.1,1821.0,1.85893641]
[1680415976109,0.5764608,1821.1,1821.0,0.85893641]
[1680415976715,0.5764608,1821.1,1821.0,0.57242872]
[1680415977105,1.3974608,1821.1,1821.0,0.57242872]
[1680415978817,0.88809679,1821.1,1821.0,0.57242872]
[1680415985620,4.67435759,1821.1,1820.9,0.57205411]
[1680415985822,2.50755674,1821.0,1820.6,0.57205411]
[1680415986018,0.823,1820.7,1820.6,0.57205411]
[1680415986222,0.823,1820.7,1820.5,1.14523849]
[1680415987028,0.823,1820.6,1820.5,1.14523849]
[1680415991329,0.823,1820.6,1820.4,6.17303849]
[1680415992037,0.823,1820.6,1820.5,1.14523849]
[1680415992533,0.95256826,1820.6,1820.5,1.14523849]
[1680415992829,0.95256826,1820.6,1820.4,6.17303849]
[1680415993230,0.95256826,1820.6,1820.3,2.14523849]
[1680415993231,0.819,1820.5,1820.3,2.14523849]
[1680415996536,0.819,1820.5,1820.3,1.14523849]
[1680415996729,0.819,1820.5,1820.3,1.8263428]
[1680416002843,0.819,1820.5,1820.3,1.14523849]
[1680416003145,0.819,1820.5,1820.3,1.826351]
[1680416004845,0.819,1820.5,1820.3,1.14523849]
[1680416007548,0.17552723,1820.4,1820.3,1.14523849]
[1680416009550,0.17552723,1820.4,1820.3,1.82634319]
[1680416009745,0.17552723,1820.4,1820.3,1.14523849]
[1680416017058,0.17552723,1820.4,1820.3,1.96323849]
[1680416020858,0.17552723,1820.4,1820.3,2.6443607]
[1680416024864,0.17552723,1820.4,1820.3,2.93250286]
[1680416036471,0.17552723,1820.4,1820.3,1.49912221]
[1680416065001,0.17352627,1820.4,1820.3,1.49912221]
[1680416081314,0.17352627,1820.4,1820.3,2.93332945]
[1680416081509,0.74856316,1820.4,1820.3,2.93332945]
[1680416082920,0.17352627,1820.4,1820.3,2.93332945]
[1680416087119,0.99352627,1820.4,1820.3,2.11532945]
[1680416106032,1.56856316,1820.4,1820.3,2.11532945]
[1680416111236,0.99352627,1820.4,1820.3,2.11532945]
[1680416112038,1.56856316,1820.4,1820.3,2.11532945]
[1680416113231,0.99352627,1820.4,1820.3,2.11532945]
[1680416116840,0.99352627,1820.4,1820.3,1.68112221]
[1680416117040,0.17352627,1820.4,1820.3,2.50212221]
[1680416124245,0.17352627,1820.4,1820.3,5.70992221]
[1680416124843,0.57503689,1820.5,1820.3,5.70992221]
[1680416125149,0.57503689,1820.5,1820.4,3.11540317]
[1680416125942,2.26159363,1820.6,1820.4,3.11540317]
[1680416126145,2.26159363,1820.6,1820.5,2.82848529]
[1680416129250,1.39803689,1820.6,1820.5,2.82848529]
[1680416129447,1.39414593,1820.6,1820.5,2.82848529]
[1680416131645,1.39414593,1820.6,1820.5,6.03628529]
[1680416131844,1.39414593,1820.6,1820.5,4.88892221]
[1680416132040,1.39414593,1820.6,1820.5,6.03589646]
[1680416132540,1.39414593,1820.6,1820.5,4.88892221]
[1680416132948,1.39414593,1820.6,1820.5,6.03583068]
[1680416133143,1.39414593,1820.6,1820.5,6.03581587]
[1680416133354,1.39414593,1820.6,1820.5,6.03573108]
[1680416133542,1.39414593,1820.6,1820.5,4.88892221]
[1680416134054,1.39414593,1820.6,1820.5,6.03571726]
[1680416135553,1.57816369,1820.6,1820.5,6.03571726]
[1680416136643,1.58005465,1820.6,1820.5,6.03571726]
[1680416137052,0.75905465,1820.6,1820.5,6.03571726]
[1680416137955,0.18401776,1820.6,1820.5,4.88892221]
[1680416138359,2.26159363,1820.7,1820.5,4.88892221]
[1680416138652,2.26159363,1820.7,1820.6,1.14659946]
[1680416138852,2.26159363,1820.7,1820.6,2.14659946]
[1680416139050,1.39803689,1820.7,1820.6,2.14659946]
[1680416141356,1.39803689,1820.7,1820.6,1.0]
[1680416141658,1.39803689,1820.7,1820.6,2.14659946]
[1680416143657,1.39803689,1820.7,1820.6,1.0]
[1680416143852,1.39803689,1820.7,1820.6,2.14659946]
[1680416144168,1.39803689,1820.7,1820.6,1.0]
[1680416145262,1.39803689,1820.7,1820.5,5.35439946]
[1680416145462,1.39803689,1820.7,1820.5,2.14659946]
[1680416145662,1.68655674,1820.7,1820.6,0.85979366]
[1680416146056,2.26254016,1820.7,1820.6,0.85979366]
[1680416149267,2.26255226,1820.7,1820.6,0.85979366]
[1680416150262,2.44669579,1820.7,1820.6,0.85979366]
[1680416151067,1.87070027,1820.7,1820.6,0.85979366]
[1680416153771,1.58317524,1820.7,1820.5,2.14659946]
[1680416154364,2.44673198,1820.7,1820.5,2.14659946]
[1680416154562,2.44673198,1820.7,1820.6,0.85975209]
[1680416155269,1.87070027,1820.7,1820.5,2.14659946]
[1680416155469,0.5760729,1820.6,1820.5,2.14659946]
[1680416155671,0.5760729,1820.6,1820.5,2.82767923]
[1680416161364,0.5760729,1820.6,1820.5,1.82767923]
[1680416162275,1.3990729,1820.6,1820.5,1.82767923]
[1680416165479,1.5833469,1820.6,1820.5,1.82767923]
[1680416168085,2.44690364,1820.6,1820.5,1.82767923]
[1680416168379,1.87083074,1820.6,1820.5,1.14659946]
[1680416174687,1.87083074,1820.6,1820.5,0.86024645]
[1680416174984,5.07863074,1820.6,1820.5,1.14659946]
[1680416175186,5.07863074,1820.6,1820.4,1.96759946]
[1680416175683,0.57626902,1820.5,1820.4,0.821]
[1680416175879,0.57626902,1820.5,1820.4,2.64909179]
[1680416180388,0.73839595,1820.5,1820.4,2.64909179]
[1680416187002,0.73839595,1820.5,1820.4,1.82809179]
[1680416197010,1.55839595,1820.5,1820.4,1.82809179]
[1680416203512,1.55839595,1820.5,1820.4,0.68113103]
[1680416206911,1.55839595,1820.5,1820.4,2.11541199]
[1680416207508,0.98212693,1820.5,1820.4,2.11541199]
[1680416207709,1.55839595,1820.5,1820.4,2.11541199]
[1680416209511,0.98212693,1820.5,1820.4,0.68113103]
[1680416209714,0.16212693,1820.5,1820.4,1.50213103]
[1680416212720,0.16212693,1820.5,1820.4,2.93566948]
[1680416222925,2.26282576,1820.7,1820.4,2.93566948]
[1680416223126,2.26282576,1820.7,1820.5,1.8276398]
[1680416223327,2.26282576,1820.7,1820.5,2.8276398]
[1680416223518,2.26282576,1820.7,1820.5,2.14650877]
[1680416225428,0.16251553,1820.6,1820.5,2.14650877]
[1680416225632,2.26282576,1820.7,1820.5,2.82758526]
[1680416225933,2.26282576,1820.7,1820.5,2.14650877]
[1680416226732,1.39926902,1820.7,1820.5,2.14650877]
[1680416227230,2.26282576,1820.7,1820.5,2.14650877]
[1680416228234,1.39926902,1820.7,1820.6,0.85978339]
[1680416233736,2.26282576,1820.7,1820.6,0.85978339]
[1680416236246,1.68655674,1820.7,1820.6,0.85978339]
[1680416236745,2.26257351,1820.7,1820.6,0.85978339]
[1680416238647,1.68655674,1820.7,1820.6,0.85978339]
[1680416240450,1.84920302,1820.7,1820.6,0.85978339]
[1680416241444,1.84920302,1820.7,1820.5,1.14650877]
[1680416241645,0.57605961,1820.6,1820.5,1.82759033]
[1680416242239,2.42526263,1820.7,1820.5,1.82759033]
[1680416242447,0.57605961,1820.6,1820.5,1.82759033]
[1680416246653,0.57605961,1820.6,1820.5,0.68108156]
[1680416248552,0.57605961,1820.6,1820.5,1.82804553]
[1680416248754,0.57605961,1820.6,1820.5,0.68108156]
[1680416252849,0.57605961,1820.6,1820.5,2.11462001]
[1680416255352,0.73883653,1820.6,1820.5,2.11462001]
[1680416298887,0.73883653,1820.6,1820.5,0.68108156]
[1680416299187,0.73883653,1820.6,1820.5,2.11597151]
[1680416300282,0.16277692,1820.6,1820.5,2.11597151]
[1680416300784,2.26261635,1820.7,1820.5,2.11597151]
[1680416300990,0.16317628,1820.6,1820.5,2.11597151]
[1680416301392,2.26261635,1820.7,1820.5,2.11597151]
[1680416302797,2.26261635,1820.7,1820.6,1.14785308]
[1680416303095,2.26261635,1820.7,1820.6,2.14785308]
[1680416303397,2.26261635,1820.7,1820.6,2.82893464]
[1680416305299,1.39905961,1820.7,1820.6,2.82893464]
[1680416312104,2.26261635,1820.7,1820.6,2.82893464]
[1680416312500,1.68655674,1820.7,1820.6,1.14785308]
[1680416315398,1.84986103,1820.7,1820.6,1.14785308]
[1680416319305,1.84986103,1820.7,1820.6,1.82892155]
[1680416320814,1.84986103,1820.7,1820.6,1.14785308]
[1680416322314,1.84986103,1820.7,1820.6,1.82892132]
[1680416323018,1.84986103,1820.7,1820.6,1.14785308]
[1680416326631,7.16941608,1820.7,1820.6,0.86102691]
[1680416327719,6.16941608,1820.7,1820.6,0.86102691]
[1680416329616,5.01710429,1820.7,1820.6,0.86102691]
[1680416332322,6.16941608,1820.7,1820.6,0.86102691]
[1680416333319,5.01710429,1820.7,1820.6,0.86102691]
[1680416333523,6.16941608,1820.7,1820.6,0.86102691]
[1680416335123,6.16941608,1820.7,1820.6,1.43554592]
[1680416337924,5.01710429,1820.7,1820.6,1.43554592]
[1680416338528,6.16941608,1820.7,1820.6,1.43554592]
[1680416339026,5.01710429,1820.7,1820.6,0.57451901]
[1680416340229,6.16941608,1820.7,1820.6,0.57451901]
[1680416340428,5.01710429,1820.7,1820.6,0.57451901]
[1680416342431,6.16941608,1820.7,1820.6,0.57451901]
[1680416342635,5.01710429,1820.7,1820.6,0.57451901]
[1680416350942,1.80930429,1820.7,1820.6,0.57451901]
[1680416351142,5.01710429,1820.7,1820.6,0.57451901]
[1680416353843,6.16941608,1820.7,1820.6,0.57451901]
[1680416354341,5.01710429,1820.7,1820.6,0.57451901]
[1680416354545,6.16941608,1820.7,1820.6,0.57451901]
[1680416368848,6.56941608,1820.7,1820.6,0.57451901]
[1680416369358,6.56941608,1820.7,1820.6,1.43554592]
[1680416370451,6.56941608,1820.7,1820.6,0.86102691]
[1680416374151,3.36161608,1820.7,1820.6,0.86102691]
[1680416374352,6.56941608,1820.7,1820.6,0.86102691]
[1680416382365,5.41710429,1820.7,1820.6,0.86102691]
[1680416384370,6.85600159,1820.7,1820.6,0.86102691]
[1680416384670,5.41710429,1820.7,1820.6,0.86102691]
[1680416384868,6.85600159,1820.7,1820.6,0.86102691]
[1680416386968,6.57011981,1820.7,1820.6,0.86102691]
[1680416417185,3.36231981,1820.7,1820.6,0.86102691]
[1680416417586,3.36231981,1820.7,1820.5,1.14785308]
[1680416417792,3.36231981,1820.7,1820.4,2.43488995]
[1680416417793,1.68764087,1820.6,1820.4,2.43488995]
[1680416417992,0.86464087,1820.6,1820.5,0.68109416]
[1680416418194,2.08764087,1820.6,1820.5,2.14920021]
[1680416418495,2.25125758,1820.6,1820.5,2.83029437]
[1680416421896,2.25125758,1820.6,1820.5,1.83029437]
[1680416422694,2.25125758,1820.6,1820.5,1.14920021]
[1680416423487,2.25125758,1820.6,1820.5,1.83030624]
[1680416425295,2.25125758,1820.6,1820.5,1.14920021]
[1680416425500,2.25125758,1820.6,1820.5,1.83031229]
[1680416426902,2.25125758,1820.6,1820.5,1.14920021]
[1680416427296,2.25125758,1820.6,1820.5,1.83031444]
[1680416430891,2.25125758,1820.6,1820.5,1.14920021]
[1680416433200,1.85125758,1820.6,1820.5,1.14920021]
[1680416449298,2.25125758,1820.6,1820.5,1.14920021]
[1680416454610,1.85125758,1820.6,1820.5,1.14920021]
[1680416461218,1.85125758,1820.6,1820.5,0.68112441]
[1680416461517,1.85125758,1820.6,1820.5,2.15072022]
[1680416461713,1.85125758,1820.6,1820.5,2.83184463]
[1680416465617,1.85125758,1820.6,1820.5,1.83184463]
[1680416479933,1.85125758,1820.6,1820.5,0.68112441]
[1680416481138,1.85125758,1820.6,1820.5,1.15171931]
[1680416481338,1.85125758,1820.6,1820.5,1.83284372]
[1680416513163,1.85125758,1820.6,1820.5,1.15171931]
[1680416516466,2.13963223,1820.6,1820.5,1.15171931]
[1680416517965,2.13963223,1820.6,1820.4,1.15171931]
[1680416518169,1.68366971,1820.5,1820.4,1.15171931]
[1680416518368,1.84820175,1820.5,1820.4,1.15171931]
[1680416520172,5.05600175,1820.5,1820.4,1.15171931]
[1680416531476,1.84820175,1820.5,1820.4,1.15171931]
[1680416536982,2.66420175,1820.5,1820.4,1.15171931]
[1680416546985,1.84520175,1820.5,1820.4,1.15171931]
[1680416576307,0.98053204,1820.5,1820.4,1.15171931]
[1680416576805,1.84540599,1820.5,1820.4,1.15171931]
[1680416577109,0.98053204,1820.5,1820.4,1.15171931]
[1680416591119,1.80353204,1820.5,1820.4,1.15171931]
[1680416594718,2.66844472,1820.5,1820.4,2.11604623]
[1680416596527,2.66844472,1820.5,1820.4,0.68115628]
[1680416597130,1.85244472,1820.5,1820.4,0.68115628]
[1680416602034,1.85244472,1820.5,1820.3,2.11604623]
[1680416602330,1.02944472,1820.5,1820.4,1.83320817]
[1680416602531,1.85244472,1820.5,1820.4,1.15203337]
[1680416602731,1.85244472,1820.5,1820.4,2.15203337]
[1680416602924,1.85244472,1820.5,1820.4,2.83318965]
[1680416603424,1.85244472,1820.5,1820.4,1.68115628]
[1680416603624,1.85244472,1820.5,1820.4,3.11604623]
[1680416603928,1.85244472,1820.5,1820.4,0.68115628]
[1680416604325,1.85244472,1820.5,1820.3,2.11604623]
[1680416604531,1.85244472,1820.5,1820.4,0.68115628]
[1680416605123,1.85244472,1820.5,1820.3,2.11604623]
[1680416605331,1.56393823,1820.5,1820.4,2.11604623]
[1680416605533,1.56393823,1820.5,1820.4,1.43488995]
[1680416605731,2.42885091,1820.5,1820.4,1.43488995]
[1680416605929,1.56393823,1820.5,1820.4,1.43488995]
[1680416606628,1.85244472,1820.5,1820.4,1.15180448]
[1680416607029,2.67544472,1820.5,1820.4,1.15180448]
[1680416610231,3.07544472,1820.5,1820.4,1.15180448]
[1680416611834,2.67544472,1820.5,1820.4,1.15180448]
[1680416621134,1.85244472,1820.5,1820.4,1.15180448]
[1680416636946,2.66844472,1820.5,1820.4,1.15180448]
[1680416646356,1.80353204,1820.5,1820.4,1.15355463]
[1680416646555,17.74085869,1820.5,1820.4,0.5762777]
[1680416646854,18.21421589,1820.5,1820.4,0.56162505]
[1680416647155,19.03721589,1820.5,1820.4,0.54709352]
[1680416647457,18.03721589,1820.5,1820.4,0.53250002]
[1680416647756,18.03721589,1820.5,1820.4,0.501309]
[1680416647955,16.59581322,1820.5,1820.4,0.501309]
[1680416648155,4.53772351,1820.5,1820.2,0.8642784]
[1680416648358,2.50018499,1820.3,1820.2,0.8642784]
[1680416653960,3.07587374,1820.3,1820.1,0.8642784]
[1680416654158,0.819,1820.2,1820.1,0.8642784]
[1680416654559,1.4442107,1820.2,1820.1,0.8642784]
[1680416655563,2.01989945,1820.2,1820.1,0.8642784]
[1680416657964,2.01989945,1820.2,1820.0,1.8642784]
[1680416658172,0.82,1820.1,1820.0,1.8642784]
[1680416658562,1.04525307,1820.1,1820.0,0.8642784]
[1680416673579,1.04525307,1820.1,1819.9,0.8642784]
[1680416675472,1.646,1820.0,1819.9,0.8642784]
[1680416675872,2.86566493,1820.0,1819.9,0.8642784]
[1680416676072,1.86566493,1820.0,1819.9,0.8642784]
[1680416676275,1.86566493,1820.0,1819.8,0.8642784]
[1680416676569,0.823,1819.9,1819.8,0.8642784]
[1680416678384,0.823,1819.9,1819.7,5.35814934]
[1680416678581,0.821,1819.8,1819.7,5.35814934]
[1680416678882,0.821,1819.8,1819.7,5.03949122]
[1680416680484,0.821,1819.8,1819.7,1.83169122]
[1680416680784,0.821,1819.8,1819.7,1.15034934]
[1680416683186,0.823,1819.7,1819.6,1.15034934]
[1680416683375,1.643,1819.7,1819.6,1.83173645]
[1680416688579,1.92051971,1819.7,1819.6,1.83173645]
[1680416689185,1.92051971,1819.7,1819.6,1.15034934]
[1680416695293,1.91351971,1819.7,1819.6,1.15034934]
[1680416696992,1.91451971,1819.7,1819.6,1.15034934]
[1680416697689,1.91451971,1819.7,1819.6,0.86319927]
[1680416697893,1.91451971,1819.7,1819.5,1.15034934]
[1680416698093,0.821,1819.6,1819.5,1.83177109]
[1680416698992,0.821,1819.6,1819.5,1.15034934]
[1680416699989,1.821,1819.6,1819.5,1.15034934]
[1680416700190,5.8478,1819.6,1819.5,0.86328956]
[1680416700894,4.8478,1819.6,1819.5,0.86328956]
[1680416703697,0.823,1819.5,1819.4,0.86328956]
[1680416703989,2.462,1819.5,1819.4,0.86328956]
[1680416705591,2.462,1819.5,1819.3,2.0136389]
[1680416705898,1.646,1819.4,1819.3,0.86328956]
[1680416706100,1.96912788,1819.4,1819.2,1.15034934]
[1680416706398,1.646,1819.3,1819.2,1.83186539]
[1680416707098,0.823,1819.3,1819.2,1.83186539]
[1680416709997,0.823,1819.3,1819.2,0.86257199]
[1680416710199,0.823,1819.3,1819.2,0.86257662]
[1680416714116,0.81776891,1819.3,1819.2,0.86257662]
[1680416714611,1.13861329,1819.3,1819.2,0.86257662]
[1680416717118,1.96161329,1819.3,1819.2,0.86257662]
[1680416725622,1.96161329,1819.3,1819.1,0.86257662]
[1680416725827,0.821,1819.2,1819.1,0.86257662]
[1680416726623,0.821,1819.2,1819.0,1.15034934]
[1680416726822,0.823,1819.1,1819.0,2.83193078]
[1680416727029,0.822,1819.1,1819.0,2.83193078]
[1680416727227,0.822,1819.1,1819.0,1.68158144]
[1680416728126,0.822,1819.1,1819.0,3.11647139]
[1680416728429,1.54384438,1819.3,1819.0,3.93547139]
[1680416728627,1.54384438,1819.3,1819.2,0.86255128]
[1680416729329,1.14384438,1819.3,1819.2,0.86255128]
[1680416733726,1.14384438,1819.3,1819.1,2.15006838]
[1680416734024,1.14384438,1819.3,1819.2,0.86290874]
[1680416734227,1.14384438,1819.3,1819.2,0.86290873]
[1680416734632,1.14384438,1819.3,1819.1,2.15006838]
[1680416735631,1.14384438,1819.3,1819.2,1.15006838]
[1680416738742,1.14384438,1819.3,1819.2,1.83158824]
[1680416739336,2.25987374,1819.7,1819.3,1.143]
[1680416739638,2.25987374,1819.7,1819.5,0.86335787]
[1680416739639,1.39568875,1819.7,1819.5,0.86335787]
[1680416739936,1.39568875,1819.7,1819.6,1.0]
[1680416742238,1.39568875,1819.7,1819.5,1.86335787]
[1680416743040,0.57568875,1819.6,1819.5,1.86335787]
[1680416745139,0.57568875,1819.6,1819.5,2.15114383]
[1680416745537,0.57568875,1819.6,1819.5,2.96814383]
[1680416745740,0.57568875,1819.7,1819.5,3.64958892]
[1680416745939,1.43987374,1819.8,1819.7,1.0]
[1680416746140,0.57568875,1819.8,1819.7,1.86400698]
[1680416746945,0.76026474,1819.8,1819.7,1.86400698]
[1680416749651,0.18457599,1819.8,1819.7,1.86400698]
[1680416756761,0.18457599,1819.8,1819.7,0.86400698]
[1680416756966,1.00557599,1819.8,1819.7,0.86400698]
[1680416757857,1.00557599,1819.8,1819.6,4.88980698]
[1680416759361,0.823,1819.7,1819.6,0.86400698]
[1680416759563,1.00772907,1819.7,1819.6,0.86400698]
[1680416760463,1.00772907,1819.7,1819.6,4.07180698]
[1680416762662,0.18472907,1819.7,1819.6,6.18194383]
[1680416767165,0.18472907,1819.7,1819.6,6.17694383]
[1680416767365,0.82,1819.9,1819.7,1.0]
[1680416767566,0.82,1819.9,1819.8,3.2078]
[1680416768067,0.82,1819.9,1819.8,3.78286454]
[1680416770977,0.82,1819.9,1819.8,4.6454499]
[1680416771277,1.39568875,1820.1,1819.8,4.89038536]
[1680416771573,1.39568875,1820.1,1819.9,1.57496499]
[1680416774682,0.1356181,1820.0,1819.9,1.57496499]
[1680416775680,0.1356181,1820.0,1819.9,2.43755035]
[1680416776180,7.56244965,1819.9,1819.8,5.0278]
[1680416776380,7.56244965,1819.9,1819.8,5.89037713]
[1680416779687,7.56244965,1819.9,1819.8,5.0278]
[1680416781580,7.56244965,1819.9,1819.8,6.17894383]
[1680416782085,7.56244965,1819.9,1819.8,5.0278]
[1680416783493,7.56244965,1819.9,1819.8,4.0278]
[1680416783697,7.56244965,1819.9,1819.8,5.17894383]
[1680416789600,7.61218376,1819.9,1819.8,5.8602615]
[1680416801094,7.61218376,1819.9,1819.8,1.97114383]
[1680416801297,7.61218376,1819.9,1819.8,2.65248272]
[1680416801505,7.61218376,1819.9,1819.8,1.97114383]
[1680416801807,9.01087251,1819.9,1819.8,1.15114383]
[1680416817013,8.18787251,1819.9,1819.8,1.15114383]
[1680416826219,9.0520575,1819.9,1819.8,1.15114383]
[1680416827218,9.0520575,1819.9,1819.8,1.83250787]
[1680416829427,9.0520575,1819.9,1819.8,1.15114383]
[1680416829921,8.47636875,1819.9,1819.8,1.15114383]
[1680416830911,9.05165471,1819.9,1819.8,1.83251127]
[1680416833921,8.47636875,1819.9,1819.8,1.83251127]
[1680416834122,8.47636875,1819.9,1819.8,1.15114383]
[1680416834729,8.47636875,1819.9,1819.8,1.83251154]
[1680416835127,8.47636875,1819.9,1819.8,1.15114383]
[1680416836924,8.47636875,1819.9,1819.8,1.83250969]
[1680416839834,9.05192803,1819.9,1819.8,1.83250969]
[1680416840130,8.47636875,1819.9,1819.8,1.83250969]
[1680416851641,8.47636875,1819.9,1819.8,0.68136586]
[1680416855541,8.47636875,1819.9,1819.8,1.83475463]
[1680416855736,8.47636875,1819.9,1819.8,1.83475446]
[1680416855939,8.47636875,1819.9,1819.8,0.68136586]
[1680416859846,8.47636875,1819.9,1819.8,2.11625581]
[1680416866949,9.29936875,1819.9,1819.8,2.11625581]
[1680416884759,9.29936875,1819.9,1819.8,0.68136586]
[1680416905379,9.29936875,1819.9,1819.8,2.11625581]
[1680416907777,9.29936875,1819.9,1819.8,0.68136586]
[1680416910985,9.29936875,1819.9,1819.8,2.11625581]
[1680416911285,9.29936875,1819.9,1819.8,0.68136586]
[1680416912580,9.29936875,1819.9,1819.8,2.11625581]
[1680416935613,9.87531231,1819.9,1819.8,2.11625581]
[1680416936408,9.01112732,1819.9,1819.8,2.11625581]
[1680416938314,9.87531231,1819.9,1819.8,2.11625581]
[1680416938518,9.29936875,1819.9,1819.8,2.11625581]
[1680416938914,9.29936875,1819.9,1819.8,0.68136586]
[1680416956840,9.29936875,1819.9,1819.8,1.83470113]
[1680416957042,9.29636875,1819.9,1819.8,1.83470113]
[1680416958744,9.29636875,1819.9,1819.8,0.68136586]
[1680416959042,9.29636875,1819.9,1819.8,1.83469228]
[1680416959241,9.29636875,1819.9,1819.8,0.68136586]
[1680416959442,9.29636875,1819.9,1819.8,1.83469288]
[1680416970054,9.29536875,1819.9,1819.8,1.83469288]
[1680416976358,8.18807767,1819.9,1819.8,2.93425581]
[1680416997474,8.18807767,1819.9,1819.8,1.49936586]
[1680416999476,8.18807767,1819.9,1819.8,2.93425581]
[1680417007083,8.18807767,1819.9,1819.8,2.93325581]
[1680417012681,7.61218376,1819.9,1819.8,2.93325581]
[1680417014785,8.18807767,1819.9,1819.8,2.93325581]
[1680417014990,7.61218376,1819.9,1819.8,2.93325581]